[Event "DVM U16w 2024"]
[Site "Neumuenster"]
[Date "2024.12.29"]
[Round "5"]
[White "Scheiding, Sophia"]
[Black "Shynkar, Daria"]
[Result "1-0"]
[ECO "B22"]
[WhiteElo "1672"]
[BlackElo "1685"]
[Annotator "NA"]
[PlyCount "81"]
[EventDate "2024.12.23"]
[EventType "team-tourn"]
[EventRounds "7"]
[EventCountry "GER"]
[SourceTitle "playchess.com"]
[Source "ChessBase"]
[SourceQuality "1"]
[TimeControl "40/5400+30:1800+30"]

1. e4 {[%emt 0:00:04]} c5 {[%emt 0:00:05]} 2. c3 {[%emt 0:00:09]} d5 {[%emt 0:00:03]} 3. exd5 {[%emt 0:00:40]} Qxd5 {[%emt 0:00:08]} 4. Nf3 {[%emt 0:00:19]} Bg4 {[%emt 0:00:22]} 5. Be2 {[%emt 0:00:32]} e6 {[%emt 0:00:28]} 6. Qa4+ {[%emt 0:00:14]} Nc6 {[%emt 0:01:56]} 7. Qxg4 {[%emt 0:00:10]} Nf6 {[%emt 0:00:08]} 8. Qa4 {[%emt 0:00:32]} Be7 {[%emt 0:04:02]} 9. O-O {[%emt 0:00:11]} a6 {[%emt 0:04:09]} 10. Na3 {[%emt 0:01:29]} O-O {[%emt 0:01:31]} 11. Qd1 {[%emt 0:01:18]} Qd7 {[%emt 0:02:23]} 12. Nc4 {[%emt 0:01:38]} Qc7 {[%emt 0:00:26]} 13. d4 {[%emt 0:02:53]} Rfd8 {[%emt 0:01:07]} 14. Be3 {[%emt 0:01:16]} cxd4 {[%emt 0:02:44]} 15. cxd4 {[%emt 0:00:57]} Nd5 {[%emt 0:06:36]} 16. Rc1 {[%emt 0:05:27]} Rac8 {[%emt 0:03:01]} 17. Nfe5 {[%emt 0:07:54]} Qb8 {[%emt 0:07:27]} 18. Nxc6 {[%emt 0:07:20]} Rxc6 {[%emt 0:01:17]} 19. Ne5 {[%emt 0:02:02]} Rxc1 {[%emt 0:01:18]} 20. Qxc1 {[%emt 0:03:38]} Bd6 {[%emt 0:01:44]} 21. Nf3 {[%emt 0:00:41]} Rc8 {[%emt 0:04:19]} 22. Qb1 {[%emt 0:02:28]} h6 {[%emt 0:03:16]} 23. Rc1 {[%emt 0:00:48]} Rc7 {[%emt 0:02:31]} 24. Rxc7 {[%emt 0:02:15]} Qxc7 {[%emt 0:01:55]} 25. Qc1 {[%emt 0:01:05]} Qxc1+ {[%emt 0:03:02]} 26. Bxc1 {[%emt 0:00:08]} Kf8 {[%emt 0:00:47]} 27. Ne5 {[%emt 0:00:39]} Ke7 {[%emt 0:01:41]} 28. Bf3 {[%emt 0:00:27]} f6 {[%emt 0:01:42]} 29. Nc4 {[%emt 0:01:36]} Bc7 {[%emt 0:01:30]} 30. b3 {[%emt 0:01:11]} b5 {[%emt 0:01:08]} 31. Ne3 {[%emt 0:01:26]} Nf4 {[%emt 0:02:05]} 32. Ba3+ {[%emt 0:00:57]} Kd7 {[%emt 0:01:20]} 33. d5 {[%emt 0:01:10]} exd5 {[%emt 0:02:11]} 34. Nxd5 {[%emt 0:00:17]} Nxd5 {[%emt 0:00:19]} 35. Bxd5 {[%emt 0:00:05]} Bd6 {[%emt 0:00:32]} 36. Bxd6 {[%emt 0:00:38]} Kxd6 {[%emt 0:00:01]} 37. Bb7 {[%emt 0:00:15]} a5 {[%emt 0:00:06]} 38. a4 {[%emt 0:01:03]} b4 {[%emt 0:00:54]} 39. Kf1 {[%emt 0:00:06]} Ke5 {[%emt 0:00:14]} 40. Ke2 {[%emt 0:00:05]} Kd4 {[%emt 0:00:46]} 41. Kf3 {[%emt 0:30:20]} 1-0

[Event "DVM U16w 2024"]
[Site "Neumuenster"]
[Date "2024.12.29"]
[Round "5"]
[White "Gold, Finnja"]
[Black "Petrosyan, Ani"]
[Result "0-1"]
[ECO "B27"]
[WhiteElo "1657"]
[BlackElo "1683"]
[Annotator "NA"]
[PlyCount "110"]
[EventDate "2024.12.23"]
[EventType "team-tourn"]
[EventRounds "7"]
[EventCountry "GER"]
[SourceTitle "playchess.com"]
[Source "ChessBase"]
[SourceQuality "1"]
[TimeControl "40/5400+30:1800+30"]

1. e4 {[%emt 0:00:04]} c6 {[%emt 0:00:21]} 2. c4 {[%emt 0:00:06]} d5 {[%emt 0:00:04]} 3. cxd5 {[%emt 0:00:09]} cxd5 {[%emt 0:00:07]} 4. exd5 {[%emt 0:00:04]} Nf6 {[%emt 0:00:07]} 5. Bb5+ {[%emt 0:00:09]} Nbd7 {[%emt 0:00:05]} 6. Nc3 {[%emt 0:00:11]} g6 {[%emt 0:00:05]} 7. d4 {[%emt 0:02:03]} Bg7 {[%emt 0:00:13]} 8. Nf3 {[%emt 0:01:02]} O-O {[%emt 0:00:07]} 9. Bf4 {[%emt 0:00:40]} Nb6 {[%emt 0:00:56]} 10. O-O {[%emt 0:00:32]} Nfxd5 {[%emt 0:02:49]} 11. Be5 {[%emt 0:03:43]} a6 {[%emt 0:04:10]} 12. Ba4 {[%emt 0:02:48]} Bg4 {[%emt 0:02:49]} 13. Bb3 {[%emt 0:01:48]} Bxe5 {[%emt 0:02:54]} 14. dxe5 {[%emt 0:05:36]} Nxc3 {[%emt 0:01:12]} 15. bxc3 {[%emt 0:00:12]} Qxd1 {[%emt 0:03:22]} 16. Bxd1 {[%emt 0:00:10]} Rac8 {[%emt 0:00:35]} 17. h3 {[%emt 0:00:45]} Bf5 {[%emt 0:01:19]} 18. Rc1 {[%emt 0:01:14]} Nd5 {[%emt 0:03:10]} 19. c4 {[%emt 0:02:26]} Bd3 {[%emt 0:01:48]} 20. Re1 {[%emt 0:02:09]} Bxc4 {[%emt 0:01:27]} 21. Bb3 {[%emt 0:00:59]} Bxb3 {[%emt 0:00:41]} 22. axb3 {[%emt 0:00:33]} b5 {[%emt 0:00:42]} 23. Ra1 {[%emt 0:00:55]} Ra8 {[%emt 0:00:15]} 24. e6 {[%emt 0:00:46]} f6 {[%emt 0:00:19]} 25. Red1 {[%emt 0:00:41]} Rfd8 {[%emt 0:01:55]} 26. Nd4 {[%emt 0:01:08]} Nc3 {[%emt 0:03:10]} 27. Rdc1 {[%emt 0:02:40]} b4 {[%emt 0:03:02]} 28. Nc6 {[%emt 0:01:01]} Ne2+ {[%emt 0:00:45]} 29. Kf1 {[%emt 0:00:12]} Nxc1 {[%emt 0:00:05]} 30. Nxd8 {[%emt 0:00:13]} Nxb3 {[%emt 0:00:23]} 31. Rd1 {[%emt 0:00:15]} a5 {[%emt 0:00:50]} 32. Nc6 {[%emt 0:00:22]} Kf8 {[%emt 0:02:44]} 33. Rd7 {[%emt 0:00:49]} Ra6 {[%emt 0:04:44]} 34. Rd8+ {[%emt 0:02:59]} Kg7 {[%emt 0:00:31]} 35. Nxe7 {[%emt 0:00:09]} Rxe6 {[%emt 0:00:13]} 36. Rd7 {[%emt 0:00:12]} Kf8 {[%emt 0:00:37]} 37. Nd5 {[%emt 0:00:15]} Nc5 {[%emt 0:00:59]} 38. Rxh7 {[%emt 0:01:57]} b3 {[%emt 0:02:22]} 39. Rh8+ {[%emt 0:00:33]} Kg7 {[%emt 0:00:06]} 40. Rc8 {[%emt 0:00:27]} Nd3 {[%emt 0:00:34]} 41. Rc7+ {[%emt 0:30:13]} Kh6 {[%emt 0:30:29]} 42. Ne3 {[%emt 0:03:16]} b2 {[%emt 0:00:36]} 43. Rb7 {[%emt 0:00:54]} a4 {[%emt 0:02:00]} 44. g4 {[%emt 0:01:45]} a3 {[%emt 0:00:42]} 45. g5+ {[%emt 0:01:14]} Kxg5 {[%emt 0:01:10]} 46. Rb5+ {[%emt 0:00:40]} Re5 {[%emt 0:01:00]} 47. h4+ {[%emt 0:00:34]} Kh5 {[%emt 0:00:32]} 48. Rb8 {[%emt 0:00:47]} Rxe3 {[%emt 0:01:40]} 49. fxe3 {[%emt 0:00:26]} a2 {[%emt 0:00:05]} 50. Ke2 {[%emt 0:00:27]} b1=Q {[%emt 0:00:23]} 51. Rd8 {[%emt 0:01:12]} Qc2+ {[%emt 0:01:41]} 52. Kf3 {[%emt 0:00:13]} Ne1+ {[%emt 0:01:29]} 53. Kf4 {[%emt 0:00:56]} Qf5+ {[%emt 0:00:16]} 54. Kg3 {[%emt 0:00:19]} Qf3+ {[%emt 0:00:08]} 55. Kh2 {[%emt 0:00:09]} Qg2# {[%emt 0:00:34]} 0-1

[Event "DVM U16w 2024"]
[Site "Neumuenster"]
[Date "2024.12.29"]
[Round "5"]
[White "Glotz, Diana"]
[Black "Siegel, Irene"]
[Result "0-1"]
[ECO "D01"]
[WhiteElo "1641"]
[BlackElo "1612"]
[Annotator "NA RC"]
[PlyCount "74"]
[EventDate "2024.12.23"]
[EventType "team-tourn"]
[EventRounds "7"]
[EventCountry "GER"]
[SourceTitle "playchess.com"]
[Source "ChessBase"]
[SourceQuality "1"]
[TimeControl "40/5400+30:1800+30"]

1. d4 {[%emt 0:02:11]} d5 {[%emt 0:00:15]} 2. Nc3 {[%emt 0:00:09]} Nf6 {[%emt 0:00:07]} 3. Bg5 {[%emt 0:00:18]} c6 {[%emt 0:00:13]} 4. Bxf6 {[%emt 0:01:11]} exf6 {[%emt 0:01:56]} 5. Qd3 {[%emt 0:01:56]} Bd6 {[%emt 0:10:22]} 6. e3 {[%emt 0:04:40]} O-O {[%emt 0:00:36]} 7. Be2 {[%emt 0:00:56]} Re8 {[%emt 0:01:28]} 8. Nf3 {[%emt 0:02:10]} b6 {[%emt 0:04:36]} 9. h3 {[%emt 0:02:37]} Nd7 {[%emt 0:00:37]} 10. O-O-O {[%emt 0:00:59]} a5 {[%emt 0:01:41]} 11. g4 {[%emt 0:01:09]} Ba6 {[%emt 0:04:05]} 12. Qd2 {[%emt 0:01:51]} Bxe2 {[%emt 0:00:13]} 13. Qxe2 {[%emt 0:00:23]} b5 {[%emt 0:00:12]} 14. h4 {[%emt 0:01:03]} a4 {[%emt 0:05:58]} 15. Nb1 {[%emt 0:05:48]} b4 {[%emt 0:14:30]} 16. b3 {[%emt 0:01:49]} axb3 {[%emt 0:01:10]} 17. axb3 {[%emt 0:00:07]} Rc8 {[%emt 0:05:37]} 18. Rdg1 {[%emt 0:05:57]} c5 {[%emt 0:05:39]} 19. dxc5 {[%emt 0:13:29]} Nxc5 {[%emt 0:04:40]} 20. g5 {[%emt 0:02:42]} Nxb3+ {[%emt 0:00:56]} 21. Kd1 {[%emt 0:03:21]} Na1 {[%emt 0:05:31]} 22. Ne1 {[%emt 0:14:24]} d4 {[%emt 0:01:38]} 23. Qd3 {[%emt 0:10:02]} dxe3 {[%emt 0:01:21]} 24. fxe3 {[%emt 0:00:31]} Be5 {[%emt 0:07:16]} 25. Rg2 {[%emt 0:06:36]} Qb6 {[%emt 0:07:31]} 26. Nd2 {[%emt 0:03:42]} Red8 {[%emt 0:01:50]} 27. Qe4 {[%emt 0:07:39]} b3 {[%emt 0:01:06]} 28. cxb3 {[%emt 0:00:59]} Nxb3 {[%emt 0:03:21]} 29. Nef3 {[%emt 0:00:58]} Rc1+ {[%emt 0:00:52]} 30. Ke2 {[%emt 0:01:04]} Rxh1 {[%emt 0:01:42]} 31. Nxb3 {[%emt 0:01:50]} Qxb3 {[%emt 0:00:14]} 32. Ng1 {[%emt 0:02:48]} Qb5+ {[%emt 0:01:37]} 33. Kf3 {[%emt 0:00:49]} Qf1+ {[%emt 0:00:15]} 34. Rf2 {[%emt 0:00:35]} Qxg1 {[%emt 0:00:14]} 35. Qc2 {[%emt 0:00:41]} Qg3+ {[%emt 0:01:19]} 36. Ke4 {[%emt 0:00:35]} Rxh4+ {[%emt 0:00:19]} 37. Kf5 {[%emt 0:00:29]} Qxg5# {[%emt 0:00:10]} 0-1

[Event "DVM U16w 2024"]
[Site "Neumuenster"]
[Date "2024.12.29"]
[Round "5"]
[White "Modali, Nikhilamrutha"]
[Black "Huber, Laura"]
[Result "0-1"]
[ECO "B11"]
[WhiteElo "1640"]
[BlackElo "1679"]
[Annotator "NA"]
[PlyCount "44"]
[EventDate "2024.12.23"]
[EventType "team-tourn"]
[EventRounds "7"]
[EventCountry "GER"]
[SourceTitle "playchess.com"]
[Source "ChessBase"]
[SourceQuality "1"]
[TimeControl "40/5400+30:1800+30"]

1. e4 {[%emt 0:00:02]} c6 {[%emt 0:00:03]} 2. Nc3 {[%emt 0:00:03]} d5 {[%emt 0:00:07]} 3. Qf3 {[%emt 0:00:09]} dxe4 {[%emt 0:10:26]} 4. Nxe4 {[%emt 0:00:07]} Nf6 {[%emt 0:01:21]} 5. Bc4 {[%emt 0:01:07]} Nbd7 {[%emt 0:03:13]} 6. d4 {[%emt 0:08:48]} Nb6 {[%emt 0:06:35]} 7. Bb3 {[%emt 0:02:32]} Qxd4 {[%emt 0:02:30]} 8. Ng5 {[%emt 0:01:25]} Qe5+ {[%emt 0:07:53]} 9. Ne2 {[%emt 0:07:28]} Nbd5 {[%emt 0:08:37]} 10. h3 {[%emt 0:10:31]} h6 {[%emt 0:03:55]} 11. Nxf7 {[%emt 0:21:17]} Kxf7 {[%emt 0:02:00]} 12. O-O {[%emt 0:08:18]} e6 {[%emt 0:08:29]} 13. Re1 {[%emt 0:03:29]} Bd6 {[%emt 0:05:09]} 14. g3 {[%emt 0:03:00]} Qe4 {[%emt 0:03:11]} 15. Bxd5 {[%emt 0:02:13]} exd5 {[%emt 0:01:34]} 16. Qc3 {[%emt 0:00:45]} Bb4 {[%emt 0:02:57]} 17. Qb3 {[%emt 0:06:15]} Bxe1 {[%emt 0:00:53]} 18. Be3 {[%emt 0:00:18]} Ba5 {[%emt 0:01:42]} 19. Nf4 {[%emt 0:02:00]} Qc4 {[%emt 0:02:36]} 20. Qa3 {[%emt 0:00:11]} Bb4 {[%emt 0:01:00]} 21. Qa4 {[%emt 0:01:25]} b5 {[%emt 0:01:04]} 22. Qb3 {[%emt 0:02:53]} Qxb3 {[%emt 0:00:26]} 0-1

[Event "DVM U16w 2024"]
[Site "Neumuenster"]
[Date "2024.12.29"]
[Round "5"]
[White "Amelang, Jamie Alice"]
[Black "Guliyeva, Zahra"]
[Result "1-0"]
[ECO "C41"]
[WhiteElo "1634"]
[BlackElo "1053"]
[Annotator "NA RC"]
[PlyCount "151"]
[EventDate "2024.12.23"]
[EventType "team-tourn"]
[EventRounds "7"]
[EventCountry "GER"]
[SourceTitle "playchess.com"]
[Source "ChessBase"]
[SourceQuality "1"]
[TimeControl "40/5400+30:1800+30"]

1. e4 {[%emt 0:00:02]} e5 {[%emt 0:00:05]} 2. Nf3 {[%emt 0:00:04]} d6 {[%emt 0:00:06]} 3. d4 {[%emt 0:00:08]} exd4 {[%emt 0:00:09]} 4. Nxd4 {[%emt 0:00:08]} Be7 {[%emt 0:00:33]} 5. Nc3 {[%emt 0:00:17]} Nf6 {[%emt 0:01:05]} 6. Bc4 {[%emt 0:01:30]} O-O {[%emt 0:00:42]} 7. Bb3 {[%emt 0:01:49]} b6 {[%emt 0:12:48]} 8. O-O {[%emt 0:01:33]} Bb7 {[%emt 0:00:24]} 9. Re1 {[%emt 0:01:19]} Nbd7 {[%emt 0:00:52]} 10. Bc4 {[%emt 0:18:31]} Nc5 {[%emt 0:08:32]} 11. Bd3 {[%emt 0:00:48]} Nfd7 {[%emt 0:02:34]} 12. Bb5 {[%emt 0:03:20]} Bf6 {[%emt 0:03:16]} 13. Bf4 {[%emt 0:25:07]} a6 {[%emt 0:06:31]} 14. Bf1 {[%emt 0:11:45]} Re8 {[%emt 0:07:38]} 15. f3 {[%emt 0:04:04]} Ne5 {[%emt 0:17:38]} 16. Rb1 {[%emt 0:09:29]} Ncd7 {[%emt 0:02:20]} 17. Nde2 {[%emt 0:02:08]} Ng6 {[%emt 0:00:55]} 18. Nd5 {[%emt 0:03:20]} Nde5 {[%emt 0:03:01]} 19. Nxf6+ {[%emt 0:01:32]} Qxf6 {[%emt 0:00:17]} 20. Bg3 {[%emt 0:00:53]} Nh4 {[%emt 0:01:40]} 21. Nf4 {[%emt 0:03:00]} Qg5 {[%emt 0:03:53]} 22. Nh3 {[%emt 0:01:13]} Qf6 {[%emt 0:01:14]} 23. Nf4 {[%emt 0:00:29]} Qg5 {[%emt 0:00:34]} 24. Be2 {[%emt 0:03:25]} Kh8 {[%emt 0:00:54]} 25. Qd4 {[%emt 0:01:35]} Rad8 {[%emt 0:00:34]} 26. Qf2 {[%emt 0:00:29]} Nhg6 {[%emt 0:00:34]} 27. Nd5 {[%emt 0:01:40]} Bxd5 {[%emt 0:00:51]} 28. exd5 {[%emt 0:00:35]} Nf4 {[%emt 0:00:50]} 29. Bf1 {[%emt 0:01:13]} Nxd5 {[%emt 0:00:33]} 30. f4 {[%emt 0:00:37]} Qg6 {[%emt 0:01:17]} 31. fxe5 {[%emt 0:00:09]} dxe5 {[%emt 0:00:14]} 32. Rxe5 {[%emt 0:00:36]} Nf6 {[%emt 0:00:20]} 33. Rxe8+ {[%emt 0:00:15]} Rxe8 {[%emt 0:00:06]} 34. Bd3 {[%emt 0:00:15]} Qg5 {[%emt 0:00:52]} 35. Bh4 {[%emt 0:00:39]} Qh6 {[%emt 0:00:25]} 36. Bxf6 {[%emt 0:00:24]} gxf6 {[%emt 0:00:09]} 37. Bxa6 {[%emt 0:01:07]} Qh5 {[%emt 0:00:12]} 38. Qxf6+ {[%emt 0:00:32]} Kg8 {[%emt 0:00:08]} 39. Rf1 {[%emt 0:00:23]} Rf8 {[%emt 0:01:24]} 40. Rf5 {[%emt 0:00:37]} Qd1+ {[%emt 0:00:15]} 41. Bf1 {[%emt 0:30:10]} Qg4 {[%emt 0:30:35]} 42. Rg5+ {[%emt 0:00:07]} Qxg5 {[%emt 0:00:07]} 43. Qxg5+ {[%emt 0:00:03]} Kh8 {[%emt 0:00:04]} 44. Bd3 {[%emt 0:00:04]} Rg8 {[%emt 0:00:09]} 45. Qf6+ {[%emt 0:00:23]} Rg7 {[%emt 0:00:12]} 46. Qd8+ {[%emt 0:00:07]} Rg8 {[%emt 0:00:05]} 47. Qxc7 {[%emt 0:00:00]} b5 {[%emt 0:00:00]} 48. Bxb5 {[%emt 0:00:00]} f5 {[%emt 0:00:00]} 49. a4 {[%emt 0:00:03]} f4 {[%emt 0:00:05]} 50. Qxf4 {[%emt 0:00:12]} Rg7 {[%emt 0:00:50]} 51. Qf8+ {[%emt 0:00:06]} Rg8 {[%emt 0:00:12]} 52. Qxg8+ {[%emt 0:00:05]} Kxg8 {[%emt 0:00:07]} 53. a5 {[%emt 0:00:03]} Kf8 {[%emt 0:00:09]} 54. a6 {[%emt 0:00:03]} Ke7 {[%emt 0:00:01]} 55. a7 {[%emt 0:00:04]} Kd6 {[%emt 0:00:06]} 56. a8=R {[%emt 0:00:05]} Kc5 {[%emt 0:00:18]} 57. Ra4 {[%emt 0:00:22]} Kxb5 {[%emt 0:00:09]} 58. Rg4 {[%emt 0:00:06]} h5 {[%emt 0:00:06]} 59. Rh4 {[%emt 0:00:06]} Kc5 {[%emt 0:00:00]} 60. g4 {[%emt 0:00:00]} hxg4 {[%emt 0:00:31]} 61. Rxg4 {[%emt 0:00:00]} Kd5 {[%emt 0:00:03]} 62. h4 {[%emt 0:00:00]} Ke5 {[%emt 0:00:09]} 63. h5 {[%emt 0:00:08]} Kf6 {[%emt 0:00:02]} 64. h6 {[%emt 0:00:06]} Kf5 {[%emt 0:00:01]} 65. Rg2 {[%emt 0:00:10]} Kf6 {[%emt 0:00:08]} 66. h7 {[%emt 0:00:04]} Kf7 {[%emt 0:00:04]} 67. h8=R {[%emt 0:00:09]} Ke6 {[%emt 0:00:17]} 68. Rf2 {[%emt 0:00:09]} Ke5 {[%emt 0:00:06]} 69. Re8+ {[%emt 0:00:21]} Kd4 {[%emt 0:00:05]} 70. Rf7 {[%emt 0:00:04]} Kd5 {[%emt 0:00:05]} 71. Rd7+ {[%emt 0:00:11]} Kc6 {[%emt 0:00:06]} 72. Rd3 {[%emt 0:00:03]} Kc5 {[%emt 0:00:04]} 73. Rc8+ {[%emt 0:00:05]} Kb6 {[%emt 0:00:05]} 74. Rb3+ {[%emt 0:00:06]} Ka7 {[%emt 0:00:06]} 75. Rc4 {[%emt 0:00:04]} Ka6 {[%emt 0:00:05]} 76. Ra4# {[%emt 0:00:03]} 1-0

[Event "DVM U16w 2024"]
[Site "Neumuenster"]
[Date "2024.12.29"]
[Round "5"]
[White "Prokscha, Charlotte"]
[Black "Schmidt, Sophie"]
[Result "1-0"]
[ECO "A25"]
[WhiteElo "1627"]
[BlackElo "1695"]
[Annotator "NA"]
[PlyCount "49"]
[EventDate "2024.12.23"]
[EventType "team-tourn"]
[EventRounds "7"]
[EventCountry "GER"]
[SourceTitle "playchess.com"]
[Source "ChessBase"]
[SourceQuality "1"]
[TimeControl "40/5400+30:1800+30"]

1. c4 {[%emt 0:00:04]} e5 {[%emt 0:00:06]} 2. Nc3 {[%emt 0:00:09]} Nc6 {[%emt 0:00:13]} 3. g3 {[%emt 0:00:10]} Bc5 {[%emt 0:00:20]} 4. Bg2 {[%emt 0:00:24]} Nf6 {[%emt 0:00:48]} 5. e3 {[%emt 0:00:28]} O-O {[%emt 0:01:12]} 6. Nge2 {[%emt 0:00:10]} d6 {[%emt 0:01:07]} 7. O-O {[%emt 0:02:01]} Bf5 {[%emt 0:03:59]} 8. a3 {[%emt 0:03:31]} a5 {[%emt 0:05:41]} 9. d4 {[%emt 0:03:55]} exd4 {[%emt 0:07:46]} 10. Nxd4 {[%emt 0:06:19]} Bg4 {[%emt 0:08:52]} 11. Nxc6 {[%emt 0:09:13]} bxc6 {[%emt 0:00:25]} 12. Qa4 {[%emt 0:00:21]} Ra6 {[%emt 0:13:53]} 13. b4 {[%emt 0:16:29]} Bb6 {[%emt 0:03:24]} 14. Bxc6 {[%emt 0:03:15]} Bh3 {[%emt 0:04:31]} 15. b5 {[%emt 0:12:05]} Ra7 {[%emt 0:05:34]} 16. Re1 {[%emt 0:03:46]} h5 {[%emt 0:05:41]} 17. Qc2 {[%emt 0:06:00]} Ng4 {[%emt 0:06:22]} 18. Bb2 {[%emt 0:02:22]} Ne5 {[%emt 0:02:43]} 19. Bd5 {[%emt 0:08:02]} h4 {[%emt 0:05:36]} 20. Ne2 {[%emt 0:02:39]} Bg4 {[%emt 0:02:53]} 21. Bxe5 dxe5 {[%emt 0:00:30]} 22. Qe4 {[%emt 0:01:59]} Qg5 {[%emt 0:00:31]} 23. Rac1 {[%emt 0:01:21]} Bc5 {[%emt 0:01:37]} 24. gxh4 {[%emt 0:02:27]} Bxe2+ {[%emt 0:00:37]} 25. hxg5 {[%emt 0:00:06]} 1-0

[Event "DVM U16w 2024"]
[Site "Neumuenster"]
[Date "2024.12.29"]
[Round "5"]
[White "Brauer, Celiene"]
[Black "Hladeniuk, Yelyzaveta"]
[Result "0-1"]
[ECO "B10"]
[WhiteElo "1611"]
[BlackElo "1630"]
[Annotator "NA"]
[PlyCount "56"]
[EventDate "2024.12.23"]
[EventType "team-tourn"]
[EventRounds "7"]
[EventCountry "GER"]
[SourceTitle "playchess.com"]
[Source "ChessBase"]
[SourceQuality "1"]
[TimeControl "40/5400+30:1800+30"]

1. e4 {[%emt 0:00:02]} c6 {[%emt 0:00:18]} 2. c4 {[%emt 0:00:08]} e6 {[%emt 0:00:36]} 3. d4 {[%emt 0:01:20]} Bb4+ {[%emt 0:00:23]} 4. Bd2 {[%emt 0:00:35]} Bxd2+ {[%emt 0:00:09]} 5. Qxd2 {[%emt 0:00:18]} Ne7 {[%emt 0:00:25]} 6. Nc3 {[%emt 0:01:18]} d5 {[%emt 0:03:56]} 7. cxd5 {[%emt 0:06:26]} exd5 {[%emt 0:00:32]} 8. Nf3 {[%emt 0:01:13]} dxe4 {[%emt 0:00:39]} 9. Nxe4 {[%emt 0:00:07]} O-O {[%emt 0:00:15]} 10. Bc4 {[%emt 0:01:04]} h6 {[%emt 0:01:47]} 11. O-O {[%emt 0:00:14]} Nf5 {[%emt 0:01:41]} 12. Rad1 {[%emt 0:00:39]} Nd6 {[%emt 0:00:37]} 13. Nxd6 {[%emt 0:00:37]} Qxd6 {[%emt 0:00:08]} 14. Rfe1 {[%emt 0:00:19]} Bg4 {[%emt 0:00:21]} 15. Be2 {[%emt 0:01:13]} Re8 {[%emt 0:01:51]} 16. Ne5 {[%emt 0:07:53]} Bxe2 {[%emt 0:00:46]} 17. Rxe2 {[%emt 0:00:09]} Nd7 {[%emt 0:00:53]} 18. Nc4 {[%emt 0:01:33]} Qd5 {[%emt 0:01:30]} 19. b3 {[%emt 0:01:27]} Nf6 {[%emt 0:02:23]} 20. Re5 {[%emt 0:01:27]} Rxe5 {[%emt 0:00:15]} 21. Nxe5 {[%emt 0:00:14]} Rd8 {[%emt 0:02:23]} 22. Nf3 {[%emt 0:03:59]} Ne4 {[%emt 0:03:14]} 23. Qd3 {[%emt 0:00:37]} Ng5 {[%emt 0:00:54]} 24. Ne5 {[%emt 0:01:25]} c5 {[%emt 0:01:19]} 25. f4 {[%emt 0:01:19]} Ne6 {[%emt 0:01:10]} 26. g3 {[%emt 0:01:35]} Nxd4 {[%emt 0:00:23]} 27. b4 {[%emt 0:02:21]} Nf3+ {[%emt 0:02:40]} 28. Kf2 {[%emt 0:04:01]} Qxa2+ {[%emt 0:00:20]} 0-1

[Event "DVM U16w 2024"]
[Site "Neumuenster"]
[Date "2024.12.29"]
[Round "5"]
[White "Roessling, Laura Marie"]
[Black "Hergenroeder, Cora"]
[Result "1-0"]
[ECO "B15"]
[WhiteElo "1607"]
[BlackElo "1681"]
[Annotator "NA"]
[PlyCount "59"]
[EventDate "2024.12.23"]
[EventType "team-tourn"]
[EventRounds "7"]
[EventCountry "GER"]
[SourceTitle "playchess.com"]
[Source "ChessBase"]
[SourceQuality "1"]
[TimeControl "40/5400+30:1800+30"]

1. e4 {[%emt 0:00:04]} c6 {[%emt 0:00:04]} 2. d4 {[%emt 0:00:11]} d5 {[%emt 0:00:03]} 3. Nd2 {[%emt 0:00:15]} dxe4 {[%emt 0:00:06]} 4. Nxe4 {[%emt 0:00:10]} Nf6 {[%emt 0:00:04]} 5. Nxf6+ {[%emt 0:00:58]} exf6 {[%emt 0:00:06]} 6. c3 {[%emt 0:00:31]} Bd6 {[%emt 0:00:09]} 7. Bd3 {[%emt 0:02:41]} O-O {[%emt 0:00:21]} 8. Qc2 {[%emt 0:02:17]} Re8+ {[%emt 0:01:30]} 9. Be3 {[%emt 0:02:35]} g6 {[%emt 0:02:43]} 10. Ne2 {[%emt 0:01:03]} Be6 {[%emt 0:05:28]} 11. O-O-O {[%emt 0:05:39]} Qc7 {[%emt 0:10:38]} 12. c4 {[%emt 0:06:42]} Nd7 {[%emt 0:17:35]} 13. h4 {[%emt 0:08:30]} Bf8 {[%emt 0:13:52]} 14. h5 {[%emt 0:03:42]} Nb6 {[%emt 0:02:37]} 15. Rdg1 {[%emt 0:08:39]} Qd7 {[%emt 0:13:23]} 16. g4 {[%emt 0:06:46]} Qe7 {[%emt 0:10:15]} 17. Nf4 {[%emt 0:03:49]} Bg7 {[%emt 0:02:43]} 18. Nxe6 {[%emt 0:01:15]} Qxe6 {[%emt 0:01:24]} 19. hxg6 {[%emt 0:02:36]} fxg6 {[%emt 0:01:38]} 20. Rh2 {[%emt 0:03:26]} Re7 {[%emt 0:05:42]} 21. Rgh1 {[%emt 0:01:11]} Qxg4 {[%emt 0:01:30]} 22. Rxh7 {[%emt 0:01:38]} f5 {[%emt 0:01:38]} 23. R7h4 {[%emt 0:01:19]} Qf3 {[%emt 0:01:39]} 24. R1h2 {[%emt 0:03:51]} f4 {[%emt 0:03:06]} 25. Rxf4 {[%emt 0:00:46]} Rxe3 {[%emt 0:00:11]} 26. Rxf3 {[%emt 0:00:59]} Rxf3 {[%emt 0:00:05]} 27. Bxg6 {[%emt 0:00:58]} Bxd4 {[%emt 0:01:49]} 28. Bh7+ {[%emt 0:01:50]} Kg7 {[%emt 0:01:02]} 29. Qg6+ {[%emt 0:00:10]} Kf8 {[%emt 0:00:06]} 30. Qd6+ {[%emt 0:01:18]} 1-0

[Event "DVM U16w 2024"]
[Site "Neumuenster"]
[Date "2024.12.29"]
[Round "5"]
[White "Christiansen, Jana-Marie"]
[Black "Halas, Neele Zoe"]
[Result "0-1"]
[ECO "A17"]
[WhiteElo "1602"]
[BlackElo "1835"]
[Annotator "NA"]
[PlyCount "62"]
[EventDate "2024.12.23"]
[EventType "team-tourn"]
[EventRounds "7"]
[EventCountry "GER"]
[SourceTitle "playchess.com"]
[Source "ChessBase"]
[SourceQuality "1"]
[TimeControl "40/5400+30:1800+30"]

1. c4 {[%emt 0:00:02]} e6 {[%emt 0:00:22]} 2. g3 {[%emt 0:00:18]} d5 {[%emt 0:00:04]} 3. cxd5 {[%emt 0:00:26]} exd5 {[%emt 0:00:07]} 4. d4 {[%emt 0:00:17]} Nf6 {[%emt 0:00:17]} 5. Bg2 {[%emt 0:01:02]} Be7 {[%emt 0:00:20]} 6. Nc3 {[%emt 0:00:35]} c6 {[%emt 0:00:06]} 7. e3 {[%emt 0:00:51]} O-O {[%emt 0:00:29]} 8. Nge2 {[%emt 0:01:13]} Re8 {[%emt 0:12:10]} 9. O-O {[%emt 0:01:43]} Bf5 {[%emt 0:13:51]} 10. h3 {[%emt 0:12:37]} h6 {[%emt 0:07:01]} 11. Nf4 {[%emt 0:03:10]} Nbd7 {[%emt 0:08:11]} 12. Bd2 {[%emt 0:06:20]} Bd6 {[%emt 0:04:12]} 13. Re1 {[%emt 0:04:49]} g5 {[%emt 0:09:01]} 14. Nfe2 {[%emt 0:06:37]} Nf8 {[%emt 0:07:57]} 15. Kh1 {[%emt 0:08:49]} Qd7 {[%emt 0:06:06]} 16. Ng1 {[%emt 0:00:39]} g4 {[%emt 0:03:36]} 17. hxg4 {[%emt 0:04:28]} Nxg4 {[%emt 0:00:03]} 18. Qe2 {[%emt 0:01:31]} Ng6 {[%emt 0:02:26]} 19. Bf3 {[%emt 0:03:40]} h5 {[%emt 0:01:27]} 20. Qf1 {[%emt 0:02:54]} Be4 {[%emt 0:02:24]} 21. Nxe4 {[%emt 0:00:38]} dxe4 {[%emt 0:00:06]} 22. Bxg4 {[%emt 0:01:09]} hxg4 {[%emt 0:00:27]} 23. Ne2 {[%emt 0:00:55]} Qf5 {[%emt 0:00:49]} 24. Kg2 {[%emt 0:01:44]} Kg7 {[%emt 0:01:41]} 25. Qg1 {[%emt 0:01:25]} Qf3+ {[%emt 0:01:18]} 26. Kf1 {[%emt 0:01:56]} Rh8 {[%emt 0:00:33]} 27. Qg2 {[%emt 0:00:18]} Rh1+ {[%emt 0:00:10]} 28. Ng1 {[%emt 0:00:08]} Rah8 {[%emt 0:05:19]} 29. Qxf3 {[%emt 0:02:04]} gxf3 {[%emt 0:00:05]} 30. Bc3 {[%emt 0:00:59]} f6 {[%emt 0:01:49]} 31. Red1 {[%emt 0:00:41]} R8h2 {[%emt 0:00:14]} 0-1